[Event "5th Vera Menchik Memorial 2022"]
[Site "Prag"]
[Date "2022.06.05"]
[Round "6.5"]
[White "Hrabusa, Matej"]
[Black "Jacko, Vladimir"]
[Result "1-0"]
[ECO "A46"]
[WhiteElo "2361"]
[BlackElo "2379"]
[Annotator "TA"]
[PlyCount "103"]
[EventDate "2022.06.05"]
[EventType "tourn"]
[EventCountry "CZE"]
[SourceTitle "playchess.com"]
[Source "ChessBase"]
[SourceQuality "1"]
[TimeControl "720+3"]

{[%evp 10,103,6,6,0,7,22,30,63,0,0,0,94,0,0,-22,29,29,28,29,22,31,14,-57,-56,-70,34,34,29,22,106,114,110,111,123,110,128,98,143,128,137,152,175,172,168,179,192,19,36,0,210,209,206,148,181,35,189,110,267,0,241,225,285,279,319,215,219,233,454,233,496,504,468,463,509,510,1992,0,0,0,1824,1068,2174,1857,29989,29990,29989,29972,29984,29984,29989,0,29981,0,29989,29990]} 1. d4 {[%emt 0:00:02]} Nf6 {[%emt 0:00:07]} 2. Nf3 {[%emt 0:00:01]} e6 {[%emt 0:00:20]} 3. Bf4 {[%emt 0:00:04]} c5 {[%emt 0:00:04]} 4. c3 {[%emt 0:00:02]} Nc6 {[%emt 0:00:09]} 5. e3 {[%emt 0:00:03]} Be7 {[%emt 0:00:50]} 6. Nbd2 {[%emt 0:00:02]} O-O {[%emt 0:00:04] A46: 1 d4 Nf6 2 Nf3 e6: Torre, London and Colle Systems.} 7. Bd3 {[%emt 0:00:28]} Nd5 {[%emt 0:00:11]} 8. Bg3 {[%emt 0:00:10]} f5 {[%emt 0:00:06] [#] White has an edge.} 9. e4 $146 {[%emt 0:00:49]} (9. dxc5 $14 Bxc5 10. Qc2) ({Predecessor:} 9. O-O b6 10. a3 f4 11. exf4 Nxf4 12. Bxf4 Rxf4 13. Ne5 Nxe5 14. dxe5 Bf8 15. Qe2 {½-½ (30) Zachariassen,J (2006)-Sorensen,B (2181) Randers 2015}) 9... fxe4 $11 {[%emt 0:00:08]} 10. Bxe4 {[%emt 0:00:15]} Nf4 {[%emt 0:01:01]} (10... cxd4 $11 11. Nxd4 Nxd4 12. cxd4 Qb6) 11. O-O {[%emt 0:00:19]} (11. Bxf4 $16 {Threatens to win with Bg3.} Rxf4 12. d5 exd5 13. Bxd5+ Kh8 14. O-O) 11... cxd4 {[%emt 0:00:13]} 12. Nxd4 {[%emt 0:00:20]} Nxd4 {[%emt 0:00:05]} (12... d5 $142 $1 13. Bc2 e5 14. Nxc6 bxc6) 13. cxd4 {[%emt 0:00:01][%cal Od4d5]} d5 {[%emt 0:00:26]} 14. Bc2 {[%emt 0:00:07]} Bd7 {[%emt 0:00:38]} 15. Bxf4 {[%emt 0:00:13]} Rxf4 {[%emt 0:00:10]} 16. Qh5 {[%emt 0:00:03]} (16. Nf3 $1 $11) 16... Rh4 $15 {[%emt 0:00:34]} 17. Qe2 {[%emt 0:00:47]} (17. Bxh7+ $2 Kh8 18. Qf7 Kxh7 $19) 17... Bd6 {[%emt 0:02:28]} (17... Rxd4 $15 18. Nf3 Rb4) 18. Nf3 $14 {[%emt 0:00:16]} Rh6 {[%emt 0:00:01]} 19. g3 {[%emt 0:00:33]} Qf6 {[%emt 0:00:56]} (19... Qb6 $11 {remains equal.}) 20. Ne5 $16 {[%emt 0:00:15]} Bxe5 {[%emt 0:00:15]} 21. dxe5 {[%emt 0:00:04]} Qe7 {[%emt 0:00:14]} 22. Rac1 {[%emt 0:00:10]} Rf8 {[%emt 0:00:02]} 23. Bd3 {[%emt 0:00:17]} Qe8 {[%emt 0:00:30]} 24. f4 {[%emt 0:00:20]} Bc6 {[%emt 0:00:02]} 25. b4 {[%emt 0:00:27] 0x0.001b6d683c31dp-1022s more active pieces.} a6 {[%emt 0:00:20] Prevents b5.} 26. a3 {[%emt 0:00:02]} Qd7 {[%emt 0:00:03]} 27. Rc5 {[%emt 0:00:24]} d4 {[%emt 0:00:36]} 28. b5 $2 {[%emt 0:01:05]} (28. Rfc1 $18) 28... axb5 $11 {[%emt 0:00:05]} 29. Bxb5 {[%emt 0:00:01]} (29. Rfc1 {with more complications.} Rd8 30. Bxb5 d3 31. Bxc6 bxc6 32. Qe4) 29... Rg6 $2 {[%emt 0:00:22]} (29... d3 $11 {and Black is okay.} 30. Qb2 d2) 30. Bxc6 $18 {[%emt 0:00:12]} bxc6 {[%emt 0:00:00]} 31. Qe4 {[%emt 0:00:04]} d3 {[%emt 0:00:10]} 32. Rd1 {[%emt 0:00:04]} (32. Qxc6 $2 Qd4+ 33. Kg2 (33. Kh1 $2 d2 $19) 33... d2 $19) (32. Rc3 $18) 32... d2 $2 {[%emt 0:00:05]} (32... Qa7 $1 $14 33. Qxc6 Rxf4) 33. Qe3 {[%emt 0:00:14]} (33. Rc2 $18) 33... Rb8 $2 {[%emt 0:00:18]} (33... Rd8 $2 34. Rc2 Qd4 35. Qxd4 Rxd4 36. Kf2 $18 (36. Rdxd2 Rxf4 37. Rxc6 h6 $16)) (33... h5 $16 {was worth a try.}) 34. Rc2 $2 {[%emt 0:00:20]} ({Don't take} 34. Qxd2 Qa7 35. Rdc1 Qxa3 36. Rxc6 Rf8 $18) ({White should try} 34. Rxd2 $18 Qa7 35. Kg2) 34... h5 $2 {[%emt 0:00:17]} (34... Rb1 $1 $11 {and Black has nothing to worry.} 35. Qe2 Qd4+ 36. Kf1 Qd5 37. Rxb1 Qh1+ 38. Kf2 Qxh2+ 39. Kf1 (39. Ke3 Rxg3+ 40. Kxd2 Rg2 $17) 39... Qh1+ 40. Kf2 Qh2+ 41. Kf1 (41. Ke3 Rxg3+ 42. Kxd2 Rg2 $17) 41... Qh1+ 42. Kf2 Qh2+) 35. Rcxd2 {[%emt 0:00:03]} Qe7 {[%emt 0:00:18]} 36. Rd7 {[%emt 0:00:11]} Qf8 {[%emt 0:00:00]} 37. Qd3 {[%emt 0:00:10]} Kh7 {[%emt 0:00:04]} 38. Rd6 {[%emt 0:00:08]} Kh6 $2 {[%emt 0:00:34]} (38... Qf5 39. Rxc6 h4 40. Qxf5 exf5) 39. Qe3 {[%emt 0:00:33]} (39. a4 $142) 39... Qf5 $2 {[%emt 0:00:05]} (39... Kh7 40. Qd3 Qf5 41. Rxc6 h4 42. Qxf5 exf5) 40. Rd8 {[%emt 0:00:19]} Rxd8 {[%emt 0:00:30]} 41. Rxd8 {[%emt 0:00:01][%cal Rd8h8][%mdl 4096] Endgame KQR-KQR} Kh7 {[%emt 0:00:01] Against Rh8+} 42. Qd3 {[%emt 0:00:03] Against Qb1+} Qg4 {[%emt 0:00:14]} (42... Qxd3 $142 43. Rxd3 Rh6) 43. Kf2 $2 {[%emt 0:00:52]} ({White has to play} 43. Rf8 $18 {Hoping for Qd8.} Qh3 44. Qd8 Rxg3+ 45. hxg3 Qxg3+ 46. Kf1 Qf3+ 47. Ke1 Qe3+ 48. Kd1 Qb3+ 49. Ke2 Qc2+ 50. Kf3 Qb3+ 51. Ke2 Qc2+ 52. Qd2 Qe4+ 53. Qe3 Qg2+ 54. Ke1) 43... Qh3 $1 $11 {[%emt 0:00:14]} 44. Kg1 $2 {[%emt 0:00:22][%mdl 8192]} (44. Rh8+ $11 Kxh8 45. Qxg6 Qxh2+ 46. Kf3) 44... Qg4 $1 $18 {[%emt 0:00:01]} 45. Kg2 {[%emt 0:00:06] a4 is the strong threat.} h4 {[%emt 0:00:11]} 46. Rf8 {[%emt 0:00:17] And now a4 would win.} h3+ {[%emt 0:00:07]} 47. Kf2 {[%emt 0:00:01]} Qh5 {[%emt 0:00:03]} 48. Qf3 {[%emt 0:00:04]} Rg4 {[%emt 0:00:01]} 49. Qe4+ {[%emt 0:00:06]} Rg6 {[%emt 0:00:02]} 50. Qe2 $2 {[%emt 0:00:07]} (50. Qd3 {mates} c5 51. Qd8 Rh6 52. Qc8 Qf5 53. Rxf5 exf5 54. e6 Rxe6 55. Qxe6) 50... Rg4 $2 {[%emt 0:00:01][%mdl 8192] [#]} (50... Qxe2+ $11 51. Kxe2 {[#]} Rxg3 $1) 51. Qd3+ {[%emt 0:00:02]} Rg6 $1 {[%emt 0:00:01]} 52. Qd8 {[%emt 0:00:02] Weighted Error Value: White=0.77/Black=0.80} 1-0

[Event "5th Vera Menchik Memorial 2022"]
[Site "Prag"]
[Date "2022.06.05"]
[Round "6.6"]
[White "Burdalev, Kirill"]
[Black "Janda, Pavel"]
[Result "1-0"]
[ECO "E10"]
[WhiteElo "2381"]
[BlackElo "2089"]
[Annotator "TA"]
[PlyCount "61"]
[EventDate "2022.06.05"]
[EventType "tourn"]
[EventCountry "CZE"]
[SourceTitle "playchess.com"]
[Source "ChessBase"]
[SourceQuality "1"]
[TimeControl "720+3"]

{[%evp 9,61,33,57,49,60,77,59,58,86,95,98,124,398,418,402,301,311,322,302,143,468,454,466,445,472,472,465,456,462,438,439,431,454,414,466,475,498,319,439,225,229,224,418,427,533,518,582,520,1203,1289,2481,2272,29995,29996]} 1. d4 {[%emt 0:00:01]} Nf6 {[%emt 0:00:02]} 2. Nf3 {[%emt 0:00:01]} e6 {[%emt 0:00:02]} 3. c4 {[%emt 0:00:05]} c5 {[%emt 0:00:03]} 4. d5 {[%emt 0:00:02]} b5 {[%emt 0:00:02]} 5. Bg5 {[%emt 0:00:30]} d6 {[%emt 0:00:05]} 6. dxe6 {[%emt 0:00:59] E10: Blumenfeld Gambit.} fxe6 {[%emt 0:00:07]} 7. cxb5 {[%emt 0:00:02] [#]} Bb7 $146 {[%emt 0:00:39]} ({Predecessor:} 7... Be7 8. Nc3 Bb7 9. e3 O-O 10. Bd3 d5 11. O-O Nbd7 12. a4 Qe8 13. Bh4 Rc8 {1-0 (43) Ivanisevic,I (2655)-Karagianis,P (2183) Las Vegas 2012}) 8. Nc3 {[%emt 0:00:22][%cal Oe2e4] White is slightly better.} d5 {[%emt 0:00:07] Against e4} 9. e4 {[%emt 0:00:46] Threatens to win with Qe2.} d4 {[%emt 0:02:04]} 10. e5 {[%emt 0:00:01] White is more active.} Qa5 $2 {[%emt 0:00:02][%mdl 8192]} 11. exf6 $18 {[%emt 0:00:46]} dxc3 {[%emt 0:00:02]} 12. f7+ {[%emt 0:01:43]} Kxf7 {[%emt 0:00:10]} 13. Ne5+ {[%emt 0:00:15]} Kg8 {[%emt 0:01:33]} 14. Nc4 $40 {[%emt 0:00:46][%mdl 128] White has strong attack.} (14. Bc4 $18 {[%cal Rc4e6] has better winning chances.} c2+ 15. Qd2 Qxd2+ 16. Kxd2) 14... c2+ $2 {[%emt 0:00:47][%mdl 8192]} (14... Qxb5 $16 {is more resistant.} 15. bxc3 Qd7) 15. Nxa5 {[%emt 0:00:04]} cxd1=Q+ 16. Rxd1 {[%emt 0:00:02]} Bd5 {[%emt 0:00:13]} 17. Bc4 {[%emt 0:00:07]} Bxc4 {[%emt 0:00:31]} 18. Nxc4 {[%emt 0:00:01] [#] aiming for Rd8.} h6 {[%emt 0:00:01]} 19. Be3 {[%emt 0:01:30]} Be7 {[%emt 0:00:03]} 20. Ke2 {[%emt 0:00:08]} Kf7 {[%emt 0:00:02]} 21. a4 {[%emt 0:00:21][%cal Ba2a4,Ba4a5][%mdl 32]} a6 {[%emt 0:00:46]} 22. b6 {[%emt 0:00:27] [#] Na5 is the strong threat.} Nc6 {[%emt 0:00:04] Prevents Na5.} 23. a5 {[%emt 0:00:10]} e5 {[%emt 0:05:47]} 24. Rd5 {[%emt 0:00:09]} (24. Rd7 $142) 24... Ke6 {[%emt 0:00:00]} 25. Rd2 {[%emt 0:01:01][%cal Bd5d2,Bd2e2,Be2e6][%mdl 32]} ({Stronger than} 25. b7 Rab8 26. Rdd1 (26. Nb6 Rxb7 27. Rhd1 Nxa5 $11) 26... Rxb7 $11) 25... Nd4+ $2 {[%emt 0:00:00]} (25... Rhd8 {might work better.} 26. Re1 Rab8) 26. Bxd4 {[%emt 0:00:04]} exd4 {[%emt 0:00:00]} 27. Kd3 {[%emt 0:00:05]} Kd5 {[%emt 0:00:00]} 28. Re2 {[%emt 0:00:07]} Bf6 {[%emt 0:00:00] Against Re5+} (28... Bd6 $142 29. Nxd6 Kxd6) 29. Rhe1 {[%emt 0:00:04] White threatens Re6 and mate.} Kc6 {[%emt 0:00:00]} 30. Re6+ {[%emt 0:00:02]} Kb5 {[%emt 0:00:00]} 31. b7 {[%emt 0:00:12] White took control after the opening.  Weighted Error Value: White=0.36/Black=0.92} 1-0

[Event "5th Vera Menchik Memorial 2022"]
[Site "Prag"]
[Date "2022.06.05"]
[Round "6.7"]
[White "Svacina, Petr"]
[Black "Richtrova, Eliska"]
[Result "0-1"]
[ECO "B25"]
[WhiteElo "2030"]
[BlackElo "2204"]
[Annotator "TA"]
[PlyCount "80"]
[EventDate "2022.06.05"]
[EventType "tourn"]
[EventCountry "CZE"]
[SourceTitle "playchess.com"]
[Source "ChessBase"]
[SourceQuality "1"]
[TimeControl "720+3"]

{[%evp 18,80,0,0,8,6,1,-3,16,22,71,82,61,49,56,63,52,53,105,63,62,59,76,39,50,13,79,48,49,32,38,40,76,71,80,61,74,0,0,0,0,0,23,-11,27,-123,-120,-290,-306,-299,-289,-456,-403,-692,-420,-1047,-12,-327,-107,-96,-102,-29966,-29962,-29998,-29999]} 1. e4 {[%emt 0:00:01]} d6 {[%emt 0:00:04]} 2. d3 {[%emt 0:00:07]} g6 {[%emt 0:00:07]} 3. g3 {[%emt 0:00:03]} Bg7 {[%emt 0:00:02]} 4. Bg2 {[%emt 0:00:02]} c5 {[%emt 0:00:15]} 5. Nc3 {[%emt 0:00:16]} Nc6 {[%emt 0:00:04]} 6. Nf3 {[%emt 0:00:12]} e5 {[%emt 0:00:33]} 7. O-O {[%emt 0:00:34]} Nge7 {[%emt 0:00:30]} 8. Nd2 {[%emt 0:00:06]} O-O {[%emt 0:00:11]} 9. Nc4 {[%emt 0:00:11]} Be6 {[%emt 0:00:34]} 10. Nd5 {[%emt 0:00:05]} Qd7 {[%emt 0:00:28] B25: Closed Sicilian: 3 g3, lines without early Be3.} 11. c3 {[%emt 0:00:21]} f5 {[%emt 0:01:38]} 12. f4 {[%emt 0:00:42]} Rae8 {[%emt 0:00:44] The position is equal.} (12... b5 $5 {[%cal Rb5c4]} 13. Nxe7+ Nxe7 14. exf5 Bd5 15. Bxd5+ Nxd5 $11) 13. a4 {[%emt 0:00:14][%cal Ba2a4,Ba4a5][%mdl 32] [#]} Bxd5 $146 {[%emt 0:00:49]} (13... exf4 $11 {feels stronger.} 14. Bxf4 Ne5) ({Predecessor:} 13... Bf7 14. a5 Nxd5 15. exd5 Ne7 16. Qa4 Qxa4 17. Rxa4 Bxd5 18. Nxd6 Rb8 19. fxe5 Bxe5 {½-½ (55) Kristiansen,J (2436)-Aagaard,J (2528) Odense 2011}) 14. exd5 $16 {[%emt 0:00:09]} Nd8 {[%emt 0:00:07]} 15. a5 {[%emt 0:01:07]} Nf7 {[%emt 0:00:13]} 16. Qa4 {[%emt 0:01:27]} Qxa4 {[%emt 0:00:38]} 17. Rxa4 {[%emt 0:00:01]} Rb8 {[%emt 0:00:01]} ({Black should play} 17... Nc8 $14) 18. Ra3 {[%emt 0:00:15]} b5 {[%emt 0:00:02]} 19. axb6 $1 {[%emt 0:00:12]} axb6 {[%emt 0:00:00]} 20. Ra6 {[%emt 0:00:11]} Nc8 {[%emt 0:00:12][%cal Be7c8,Bc8b6,Bb6a4,Ba4b2,Bb2d3][%mdl 32]} 21. Re1 {[%emt 0:00:12]} Re8 {[%emt 0:00:39]} (21... exf4 $11 22. Bxf4 b5) 22. Kf2 {[%emt 0:00:31]} Kf8 {[%emt 0:00:01]} 23. Bd2 {[%emt 0:00:09]} b5 {[%emt 0:00:41]} 24. Na5 {[%emt 0:00:17]} Nb6 {[%emt 0:00:42]} 25. Nc6 {[%emt 0:00:09]} Rb7 {[%emt 0:00:01]} 26. Rea1 {[%emt 0:00:09]} c4 {[%emt 0:00:20]} 27. Be3 {[%emt 0:00:34]} (27. fxe5 $16 {Hoping for e6.} Bxe5 28. R1a5) 27... Na4 $11 {[%emt 0:00:11]} 28. dxc4 {[%emt 0:00:23]} Nxb2 {[%emt 0:00:01] ...exf4 is the strong threat.} 29. cxb5 {[%emt 0:00:39]} exf4 {[%emt 0:00:05]} 30. Bd4 {[%emt 0:00:25] A strong pair of Bishops.} ({Reject} 30. Bxf4 Nd3+ 31. Kg1 Nxf4 32. gxf4 Rxb5 $15) (30. gxf4 $5 {[%cal Rg2f1]} Nc4 31. Bd4 $14) 30... Nd3+ {[%emt 0:00:30]} 31. Kf1 {[%emt 0:00:02]} (31. Kg1 $11) 31... fxg3 $17 {[%emt 0:00:10]} 32. Bxg7+ $2 {[%emt 0:00:11]} (32. b6 $17 {is a better defense.} Bxd4 33. Nxd4 gxh2 34. Ne6+ Kg8 35. Ra8) 32... Kxg7 $19 {[%emt 0:00:01]} 33. hxg3 {[%emt 0:00:12]} Rxb5 {[%emt 0:00:03]} 34. c4 {[%emt 0:00:04]} (34. Nd4 {keeps fighting.} Rb2 35. Ne6+ Kf6 36. Kg1) 34... Rb2 {[%emt 0:00:08] White must now prevent ...Ree2.} 35. Nd4 {[%emt 0:00:34] Prevents Ree2.} (35. Kg1 $142 Re3 36. R1a2) 35... Ng5 {[%emt 0:00:20] And now ...Re3 would win.} 36. Rxd6 {[%emt 0:00:21]} (36. Kg1 $142 Re3 37. R6a2) 36... Kh6 $2 {[%emt 0:00:38]} (36... Re3 $19 37. Rd7+ Kh6) 37. Ne6 $2 {[%emt 0:00:08][%mdl 8192] [#]} (37. Rd1 $11 {and White is okay.} Rf2+ 38. Kg1) 37... Ne4 $2 {[%emt 0:00:07]} (37... f4 $1 $19 {[%cal Rf4f3] is more deadly. ( -> ...f3)} 38. Nxg5 (38. Nxf4 $2 Nxf4 39. gxf4 Rf8 $19) 38... Kxg5) 38. Bxe4 $17 {[%emt 0:00:22]} fxe4 {[%emt 0:00:01]} 39. Ra3 $2 {[%emt 0:00:06][%mdl 8192] [#]} (39. Nf4 $17) 39... Reb8 $1 {[%emt 0:00:11]} 40. g4 {[%emt 0:00:15]} Rf2+ {[%emt 0:00:07] Weighted Error Value: White=0.88/Black=0.57} 0-1

[Event "5th Vera Menchik Memorial 2022"]
[Site "Prag"]
[Date "2022.06.05"]
[Round "6.8"]
[White "Fedorov, Evgueny"]
[Black "Kubikova, Hana"]
[Result "1-0"]
[ECO "B29"]
[WhiteElo "2236"]
[BlackElo "2068"]
[Annotator "TA"]
[PlyCount "46"]
[EventDate "2022.06.05"]
[EventType "tourn"]
[EventCountry "CZE"]
[SourceTitle "playchess.com"]
[Source "ChessBase"]
[SourceQuality "1"]
[TimeControl "720+3"]

{[%evp 12,46,30,33,41,32,35,0,6,0,0,7,0,0,0,0,28,-35,18,0,0,0,0,0,42,39,35,16,28,11,12,19,17,-33,1103,1014,29997]} 1. e4 {[%emt 0:00:02]} c5 {[%emt 0:00:02]} 2. Nf3 {[%emt 0:00:02]} Nf6 {[%emt 0:00:01]} 3. Nc3 {[%emt 0:00:03]} Nc6 {[%emt 0:00:02]} 4. d4 {[%emt 0:00:02]} d5 {[%emt 0:00:03]} 5. exd5 {[%emt 0:00:24]} Nxd5 {[%emt 0:00:03]} 6. Bb5 {[%emt 0:00:09]} Nxc3 {[%emt 0:00:14]} 7. bxc3 {[%emt 0:00:06]} cxd4 {[%emt 0:00:06] B29: Sicilian: 2 Nf3 Nf6 (Nimzowitsch Variation).} 8. Nxd4 {[%emt 0:01:06]} Bd7 {[%emt 0:02:35]} 9. O-O {[%emt 0:00:18]} Nxd4 {[%emt 0:00:51] The position is equal.} 10. Bxd7+ {[%emt 0:00:02]} Qxd7 {[%emt 0:00:01]} 11. cxd4 {[%emt 0:00:02]} e6 {[%emt 0:00:33][%cal Be7e6,Be6e5][%mdl 32]} 12. Qg4 {[%emt 0:00:29] [#]} g6 $146 {[%emt 0:01:22]} ({Predecessor:} 12... Rc8 13. Be3 h5 14. Qg3 h4 15. Qg4 h3 16. gxh3 Qd5 17. Rfc1 Rc4 18. a4 g6 {½-½ (58) Karttunen,M (2488)-Bazeev,G (2385) Chess.com INT 2022}) 13. d5 {[%emt 0:00:48]} e5 {[%emt 0:00:31]} ({Much less strong is} 13... Bg7 14. dxe6 fxe6 15. Rd1 $14) (13... Qxd5 $5 {[%cal Rf8g7]} 14. Bb2 Rg8 $11) 14. Qg3 {[%emt 0:00:44]} (14. Qf3 $11 Bg7 15. Ba3) 14... f6 {[%emt 0:01:10]} (14... Qxd5 $15 15. c4 Qe6) 15. f4 {[%emt 0:02:26][%cal Bf2f4,Bf4e5,Be5f6][%mdl 32]} Bc5+ {[%emt 0:00:21]} ({Don't take} 15... Qxd5 16. fxe5 f5 17. Kh1 $11) 16. Be3 {[%emt 0:00:05]} Bxe3+ {[%emt 0:01:00]} 17. Qxe3 {[%emt 0:00:02]} O-O {[%emt 0:00:13]} 18. fxe5 {[%emt 0:00:15]} Qxd5 {[%emt 0:00:43]} 19. exf6 {[%emt 0:00:12]} b6 {[%emt 0:00:43]} 20. Rad1 {[%emt 0:03:16]} Qxa2 {[%emt 0:00:30]} 21. Rd7 {[%emt 0:00:07] [#] Intending Rg7+ and mate.} Rf7 {[%emt 0:00:11] Prevents Rg7+.} 22. Rfd1 {[%emt 0:00:41]} ({Better is} 22. Qe4 $11 Raf8 23. Rd6) 22... Rxf6 $2 {[%emt 0:01:04][%mdl 8192]} (22... Rxd7 $15 23. Rxd7 Qa1+ 24. Kf2 Qxf6+ 25. Ke2 a5) 23. Qh6 $18 {[%emt 0:01:00][%csl Gd7][%cal Rh6g7]} Rf7 {[%emt 0:00:53] Prevents Qg7+.  Weighted Error Value: White=0.23 (precise) /Black=0.12 (very precise)} 1-0

[Event "5th Vera Menchik Memorial 2022"]
[Site "Prag"]
[Date "2022.06.05"]
[Round "6.9"]
[White "Holy, Filip"]
[Black "Jedlicka, Ales"]
[Result "1/2-1/2"]
[ECO "B32"]
[WhiteElo "2066"]
[BlackElo "2207"]
[Annotator "TA"]
[PlyCount "110"]
[EventDate "2022.06.05"]
[EventType "tourn"]
[EventCountry "CZE"]
[SourceTitle "playchess.com"]
[Source "ChessBase"]
[SourceQuality "1"]
[TimeControl "720+3"]

{[%evp 11,110,33,32,27,33,34,35,33,36,16,39,8,14,24,22,27,59,57,45,45,121,104,112,112,103,102,108,95,101,17,17,0,0,10,28,0,85,79,118,32,100,112,114,52,57,57,180,180,187,176,182,156,182,165,264,210,208,198,196,147,107,8,95,96,89,8,8,8,8,8,8,8,8,8,8,8,110,10,172,96,169,209,12820,22,51,37,86,32,43,43,329,335,721,762,317,8,8,8,8,8,8]} 1. e4 {[%emt 0:00:01]} c5 {[%emt 0:00:03]} 2. Nf3 {[%emt 0:00:01][%cal Bg1f3,Bf3d4,Bd4b5,Bb5c3,Bc3d5][%mdl 32]} Nc6 {[%emt 0:00:02]} 3. d4 {[%emt 0:00:01]} cxd4 {[%emt 0:00:01]} 4. Nxd4 {[%emt 0:00:01]} e5 {[%emt 0:00:03]} 5. Nb5 {[%emt 0:00:01]} d6 {[%emt 0:00:01]} 6. c4 {[%emt 0:00:02]} Be7 {[%emt 0:00:03] 6...Be6 injects fresh life into this line.} 7. N5c3 {[%emt 0:01:44] B32: Sicilian: Löwenthal and Kalashnikov Variations.} Be6 {[%emt 0:00:26]} 8. Nd5 {[%emt 0:00:18]} Rc8 {[%emt 0:00:06]} 9. Nbc3 {[%emt 0:00:15] White is slightly better.} Bg5 {[%emt 0:00:11] [#]} 10. Ne3 $146 {[%emt 0:00:47]} ({Predecessor:} 10. Bd3 Bxc1 11. Rxc1 Nge7 12. O-O O-O 13. Qd2 Ng6 14. Bb1 Qh4 15. b3 f5 16. f4 fxe4 17. fxe5 Ngxe5 18. Bxe4 Ng4 19. h3 Nge5 20. Nf4 Bf7 {½-½ (20) Hoffmann,M (2441)-Kadric,D (2553) Tegernsee 2021}) 10... Nge7 {[%emt 0:00:14]} 11. Be2 {[%emt 0:01:12]} Nd4 {[%emt 0:00:17][%cal Bc6d4,Bd4e6,Be6c5][%mdl 32]} 12. b3 {[%emt 0:00:30]} O-O {[%emt 0:00:09]} 13. O-O {[%emt 0:00:06]} f5 {[%emt 0:00:15]} 14. exf5 {[%emt 0:00:11]} Nexf5 {[%emt 0:00:05]} 15. Bg4 {[%emt 0:00:24]} (15. Bd3 {looks sharper.} Ne7 16. Nc2 Bxc1 17. Rxc1 Nec6 18. Be4) 15... Nxe3 {[%emt 0:01:09]} (15... g6 $14) 16. Bxe6+ $16 {[%emt 0:00:50]} Nxe6 {[%emt 0:00:05]} 17. Bxe3 {[%emt 0:00:07]} Bxe3 {[%emt 0:00:19]} 18. fxe3 {[%emt 0:00:46]} Rxf1+ {[%emt 0:00:06]} 19. Qxf1 {[%emt 0:00:08]} Qg5 {[%emt 0:00:17]} 20. Nd5 {[%emt 0:01:28]} (20. Qd3 $16) 20... Rf8 $11 {[%emt 0:00:10]} 21. Qd3 {[%emt 0:00:38]} Nc5 {[%emt 0:00:06]} 22. Qc2 {[%emt 0:00:15]} e4 {[%emt 0:00:26]} (22... a5 {with more complications.} 23. Qe2 Ne4 24. Rf1 g6) 23. Nf4 {[%emt 0:00:25]} (23. Qc3 {feels hotter.} Qh4 24. Qe1 Qg5 25. Qg3) 23... Qf6 {[%emt 0:00:39]} (23... Nd3 $11) 24. Rd1 $16 {[%emt 0:01:47]} g5 {[%emt 0:00:11]} 25. Nd5 {[%emt 0:00:36]} (25. Nh5 $1 $16 {[%cal Rh5f6]} Qg6 26. Ng3) 25... Qe5 {[%emt 0:00:07]} (25... Qe6 $1 $14) 26. Qc3 {[%emt 0:00:14]} Qe6 {[%emt 0:01:01]} 27. Rf1 {[%emt 0:00:12] White is more active.} ({Better is} 27. Qd4 $16) 27... Rxf1+ $14 {[%emt 0:00:10]} 28. Kxf1 {[%emt 0:00:02][%mdl 4096] Endgame KQN-KQN} Nd3 {[%emt 0:00:11]} (28... b5 $14) 29. Qf6 $1 $18 {[%emt 0:00:13]} Qxf6+ {[%emt 0:01:51]} 30. Nxf6+ {[%emt 0:00:01] KN-KN} Kf7 {[%emt 0:00:02]} 31. Nxe4 {[%emt 0:00:02]} Ke7 {[%emt 0:00:07]} 32. Nxg5 {[%emt 0:00:04]} h6 {[%emt 0:00:07]} (32... Nc1 {was necessary.} 33. Nxh7 Nxa2) 33. Nf3 {[%emt 0:00:03]} Nc1 {[%emt 0:00:01]} 34. Nd4 {[%emt 0:00:02]} Nxa2 {[%emt 0:00:09]} 35. Nf5+ {[%emt 0:00:04]} (35. Kf2 $18) 35... Ke6 $16 {[%emt 0:00:01]} 36. Nxh6 {[%emt 0:00:03]} (36. g4 $1 $16) 36... Nc1 {[%emt 0:00:01]} (36... a5 $1 $11) 37. b4 {[%emt 0:00:12]} Nd3 {[%emt 0:00:03]} 38. b5 {[%emt 0:00:03]} (38. Ng4 $16) 38... Ne5 $11 {[%emt 0:00:08]} 39. Ke2 {[%emt 0:00:05] next e4 is good for White.} Nxc4 {[%emt 0:00:01]} 40. g4 {[%emt 0:00:03]} Na3 {[%emt 0:00:05]} 41. b6 {[%emt 0:00:02]} axb6 {[%emt 0:00:03]} 42. Nf5 {[%emt 0:00:03] Threatens to win with h4.} b5 {[%emt 0:00:23]} 43. Kd3 {[%emt 0:00:04]} Ke5 {[%emt 0:00:01]} (43... Nc4 $11) 44. h4 {[%emt 0:00:02]} (44. h3 $1 $16) 44... b4 $2 {[%emt 0:00:26]} (44... Nc4 $11 {and Black stays safe.}) 45. h5 {[%emt 0:00:01]} (45. Nd4 $18) 45... b3 {[%emt 0:00:25]} (45... Kf6 $16) 46. Kc3 $18 {[%emt 0:00:01]} Nb1+ $2 {[%emt 0:00:23] [#]} (46... Kf6 47. Kxb3 (47. Nxd6 Nc2 $16) 47... Nb5) 47. Kxb3 $2 {[%emt 0:00:03]} (47. Kb2 $1 $18 {Intending h6 and mate.} Nd2 48. h6 Nc4+ 49. Kxb3 Nxe3 50. h7 Nxg4 51. Ne7) 47... Nd2+ $11 {[%emt 0:00:01]} 48. Kc2 {[%emt 0:00:07] Threatening mate with h6.} Nf3 {[%emt 0:00:14]} 49. h6 {[%emt 0:00:02]} (49. Nd4 $16 Ng5 50. Kd3) 49... Ng5 $14 {[%emt 0:00:01]} 50. Kd3 {[%emt 0:00:05]} b5 $2 {[%emt 0:00:05][%mdl 8192]} ({Black should try} 50... b6 $14) 51. Nd4 $18 {[%emt 0:00:03][%cal Od4f3] aiming for Nf3+!} Kf6 $2 {[%emt 0:01:00]} (51... Nf7 52. h7 (52. Nxb5 Nxh6 53. e4 Nxg4 $11) 52... Kf6) 52. Nxb5 {[%emt 0:00:02]} Nf7 {[%emt 0:00:01] [#]} 53. Kd4 $2 {[%emt 0:00:04]} ({Only move:} 53. h7 $1 $18 {[%cal Ob5d6] Hoping for Nxd6!} Ne5+ 54. Ke4) 53... Nxh6 $11 {[%emt 0:00:03] The position is equal.} 54. Nxd6 {[%emt 0:00:02] Ne4+ is the strong threat.} Nxg4 {[%emt 0:00:02]} 55. Ne4+ {[%emt 0:00:02]} Ke6 {[%emt 0:00:02] Weighted Error Value: White=0.45/Black=0.42} 1/2-1/2